bitfinex/quotes_BTCUSD_20241222
["timestamp","ask_amount","ask_price","bid_price","bid_amount"]
[1734910739278,0.4278,95198.0,95189.0,6e-07]
[1734910739279,0.710806,95190.0,95189.0,6e-07]
[1734910739455,0.223,95185.0,95184.0,2e-07]
[1734910739682,0.5521084,95185.0,95184.0,2e-07]
[1734910739885,0.5758531,95185.0,95184.0,2e-07]
[1734910740089,0.66095,95170.0,95144.0,0.0144754]
[1734910740293,0.483194,95150.0,95144.0,0.0144754]
[1734910740502,0.7623024,95150.0,95144.0,0.0144754]
[1734910740705,0.79381863,95150.0,95144.0,0.0144754]
[1734910741533,0.373,95145.0,95144.0,0.0144754]
[1734910741685,0.5525084,95145.0,95144.0,0.0144754]
[1734910742035,0.58402237,95145.0,95144.0,0.0144754]
[1734910742989,0.55809757,95145.0,95144.0,0.0144754]
[1734910743189,0.67754568,95145.0,95144.0,0.0144754]
[1734910743441,0.68154568,95145.0,95144.0,0.0144754]
[1734910744448,0.58023728,95145.0,95144.0,0.0144754]
[1734910745253,0.58023728,95145.0,95133.0,8.56e-05]
[1734910745254,0.383229,95134.0,95133.0,8.56e-05]
[1734910745468,0.48981658,95134.0,95133.0,8.56e-05]
[1734910745663,0.68981658,95134.0,95133.0,8.56e-05]
[1734910746038,0.71899138,95134.0,95133.0,8.56e-05]
[1734910746243,0.662969,95116.0,95088.0,8.56e-05]
[1734910746464,0.76953085,95116.0,95088.0,8.56e-05]
[1734910746857,0.79101917,95116.0,95088.0,8.56e-05]
[1734910747671,0.79155888,95116.0,95088.0,8.56e-05]
[1734910747875,0.79755888,95116.0,95115.0,0.0010856]
[1734910748075,0.93806728,95116.0,95115.0,8.56e-05]
[1734910748390,0.83675888,95116.0,95115.0,8.56e-05]
[1734910748613,0.1,95094.0,95088.0,8.56e-05]
[1734910748820,0.1,95096.0,95088.0,8.56e-05]
[1734910748821,0.233329,95089.0,95088.0,8.56e-05]
[1734910749018,0.3395862,95089.0,95088.0,8.56e-05]
[1734910749684,0.1292572,95089.0,95088.0,8.56e-05]
[1734910750292,0.1243084,95089.0,95088.0,0.0030856]
[1734910750493,0.12562312,95089.0,95088.0,8.56e-05]
[1734910750950,0.12562312,95089.0,95088.0,0.0040856]
[1734910751117,0.12562312,95089.0,95088.0,8.56e-05]
[1734910751323,0.023,95088.0,95070.0,0.12672542]
[1734910751527,0.023,95086.0,95079.0,0.21035]
[1734910751732,0.1013084,95085.0,95079.0,0.0774]
[1734910752089,0.001,95089.0,95080.0,0.420696]
[1734910752296,0.001,95089.0,95085.0,0.210336]
[1734910752784,0.00053971,95089.0,95082.0,0.210344]
[1734910753263,0.00053971,95089.0,95081.0,0.0483]
[1734910753684,0.00053971,95089.0,95085.0,0.005]
[1734910753905,0.00053971,95089.0,95081.0,0.0483]
[1734910754106,0.00053971,95089.0,95083.0,0.210342]
[1734910754315,0.00053971,95089.0,95082.0,0.005]
[1734910754547,0.210333,95087.0,95081.0,0.0483]
[1734910754758,0.00053971,95089.0,95068.0,0.210373]
[1734910754759,0.210347,95081.0,95068.0,0.210373]
[1734910754964,0.00131473,95080.0,95068.0,0.210373]
[1734910755379,0.00131473,95085.0,95073.0,0.210363]
[1734910755584,0.1013084,95084.0,95073.0,0.210363]
[1734910755793,0.1013084,95084.0,95070.0,0.12672542]
[1734910755794,0.01163101,95083.0,95066.0,0.0493]
[1734910756002,0.1243084,95082.0,95066.0,0.0493]
[1734910756208,0.023,95071.0,95053.0,0.0493]
[1734910756415,0.1013084,95070.0,95060.0,0.291192]
[1734910756824,0.023,95083.0,95066.0,0.210378]
[1734910757035,0.10262317,95082.0,95066.0,0.210378]
[1734910757248,0.210346,95081.0,95066.0,0.215378]
[1734910757452,0.023,95083.0,95066.0,0.215378]
[1734910757453,0.10262317,95080.0,95066.0,0.215378]
[1734910757687,0.10262317,95080.0,95071.0,0.210367]
[1734910758308,0.10262317,95080.0,95066.0,0.210378]
[1734910758766,0.10262317,95080.0,95066.0,0.420758]
[1734910759182,0.10262317,95080.0,95071.0,0.210367]
[1734910759387,0.10262317,95080.0,95066.0,0.210378]
[1734910759606,0.10262317,95080.0,95066.0,0.215378]
[1734910759780,0.10262317,95080.0,95066.0,0.210378]
[1734910760217,0.10262317,95080.0,95066.0,0.006]
[1734910760218,0.023,95078.0,95066.0,0.006]
[1734910760434,0.023,95068.0,95057.0,7e-05]
[1734910760671,0.31300037,95067.0,95057.0,7e-05]
[1734910760852,0.3116854,95067.0,95066.0,0.002]
[1734910761074,0.3116854,95067.0,95057.0,7e-05]
[1734910762014,0.23338,95066.0,95057.0,7e-05]
[1734910762260,0.023,95064.0,95057.0,7e-05]
[1734910762510,0.1013084,95065.0,95057.0,7e-05]
[1734910762749,0.00053971,95089.0,95057.0,7e-05]
[1734910762991,0.210356,95077.0,95063.0,0.210384]
[1734910763238,0.1256233,95076.0,95063.0,0.210384]
[1734910763777,0.1243084,95076.0,95067.0,0.210375]
[1734910764037,0.1013084,95076.0,95067.0,0.210375]
[1734910764518,0.21167484,95075.0,95063.0,0.001]
[1734910764769,0.1013084,95075.0,95064.0,0.210384]
[1734910764998,0.10262324,95075.0,95064.0,0.210384]
[1734910765475,0.10262324,95075.0,95062.0,0.210387]
[1734910765959,0.10262324,95075.0,95064.0,0.210384]
[1734910766494,0.10262324,95075.0,95064.0,0.214384]
[1734910766739,0.10262324,95075.0,95064.0,0.210384]
[1734910767219,0.210362,95074.0,95062.0,0.212387]
[1734910767461,0.00131484,95073.0,95062.0,0.210387]
[1734910767683,0.210362,95074.0,95062.0,0.210387]
[1734910767962,0.1013084,95075.0,95066.0,0.210378]
[1734910768447,0.1013084,95075.0,95070.0,0.21037]
[1734910768704,0.023,95087.0,95075.0,0.210358]
[1734910768960,0.0828,95101.0,95072.0,0.0809]
[1734910768961,0.023,95085.0,95072.0,0.0809]
[1734910769227,0.023,95083.0,95071.0,0.210368]
[1734910769456,0.10262317,95082.0,95071.0,0.210368]
[1734910770208,0.10262317,95082.0,95076.0,0.210357]
[1734910770722,0.00053971,95089.0,95080.0,0.210347]
[1734910770973,0.1013084,95088.0,95073.0,0.210364]
[1734910771164,0.02431469,95087.0,95073.0,0.210364]
[1734910771462,0.1013084,95086.0,95077.0,0.210354]
[1734910771701,0.1013084,95086.0,95079.0,0.210349]
[1734910771925,0.00053971,95089.0,95085.0,0.210337]
[1734910772172,0.00053971,95089.0,95079.0,0.0496]
[1734910772647,0.00185435,95089.0,95080.0,0.210349]
[1734910773592,0.00185435,95089.0,95079.0,0.0496]
[1734910773889,0.00185435,95089.0,95080.0,0.210349]
[1734910774242,0.00185435,95089.0,95079.0,0.0496]
[1734910774466,0.00185435,95089.0,95077.0,0.210354]
[1734910774708,0.00185435,95089.0,95074.0,0.210361]
[1734910774940,0.00185435,95089.0,95081.0,0.210345]
[1734910775650,0.00185435,95089.0,95072.0,0.210366]
[1734910775887,0.023,95087.0,95074.0,0.001]
[1734910776140,0.023,95087.0,95066.0,0.210379]
[1734910776141,0.023,95080.0,95066.0,0.210379]
[1734910776414,0.1013084,95079.0,95070.0,0.21037]
[1734910776914,0.023,95088.0,95069.0,0.12672542]
[1734910777151,0.1013084,95087.0,95078.0,0.210352]
[1734910777379,0.00053971,95089.0,95079.0,0.210351]
[1734910777613,0.00071131,95089.0,95076.0,8.58e-05]
[1734910777854,0.00071131,95089.0,95085.0,0.210337]
[1734910778632,0.00071131,95089.0,95085.0,0.420674]
[1734910780031,0.00071131,95089.0,95085.0,0.421674]
[1734910781226,0.00071131,95089.0,95085.0,0.294674]
[1734910781572,0.00071131,95089.0,95086.0,0.0764]
[1734910781672,0.00071131,95089.0,95087.0,0.210333]
[1734910782644,0.00071131,95089.0,95088.0,0.15]
[1734910784685,0.00071131,95089.0,95088.0,0.2513084]
[1734910784880,0.00071131,95089.0,95088.0,0.2603084]
[1734910785617,0.00071131,95089.0,95088.0,0.2513084]
[1734910785933,0.00071131,95089.0,95088.0,0.2523084]
[1734910786335,0.00071131,95089.0,95088.0,0.2513084]
[1734910786496,0.00071131,95089.0,95088.0,0.2523084]
[1734910786696,0.00071131,95089.0,95088.0,0.151]
[1734910787128,0.00071131,95089.0,95088.0,0.001]
[1734910787885,0.00071131,95089.0,95087.0,0.210333]
[1734910788232,0.00071131,95089.0,95088.0,0.001]
[1734910789142,0.00071131,95089.0,95087.0,0.210333]
[1734910789336,0.00071131,95089.0,95088.0,0.009]
[1734910789863,0.00071131,95089.0,95087.0,0.210333]
[1734910791135,0.00171131,95089.0,95088.0,0.009]
[1734910791738,0.00071131,95089.0,95087.0,0.210333]
[1734910792453,0.00171131,95089.0,95087.0,0.219333]
[1734910792654,0.00171131,95089.0,95087.0,0.210333]
[1734910792866,0.00171131,95089.0,95088.0,0.15]
[1734910793065,0.00271131,95089.0,95088.0,0.15]
[1734910794434,0.00071131,95089.0,95088.0,0.15]
[1734910795078,0.00171131,95089.0,95088.0,0.15]
[1734910795296,0.00071131,95089.0,95088.0,0.15]
[1734910795671,0.00771131,95089.0,95088.0,0.151]
[1734910796053,0.00071131,95089.0,95088.0,0.15]
[1734910796355,0.00771131,95089.0,95088.0,0.151]
[1734910800797,0.00771131,95089.0,95088.0,0.001]
[1734910801573,0.00771131,95089.0,95087.0,0.140185]
[1734910801574,0.00071131,95089.0,95087.0,0.140185]
[1734910802157,0.00171131,95089.0,95088.0,0.009]
[1734910802892,0.00171131,95089.0,95085.0,8.57e-05]
[1734910802893,0.210331,95088.0,95085.0,8.57e-05]
[1734910803103,0.360635,95086.0,95085.0,8.57e-05]
[1734910803303,0.4619434,95086.0,95085.0,8.57e-05]
[1734910805319,0.4629434,95086.0,95085.0,0.0030857]
[1734910806380,0.4629434,95086.0,95085.0,8.57e-05]
[1734910806782,0.3939434,95086.0,95085.0,8.57e-05]
[1734910809445,0.001,95086.0,95085.0,8.57e-05]
[1734910810217,0.00231465,95086.0,95085.0,8.57e-05]
[1734910810637,0.001,95086.0,95085.0,8.57e-05]
[1734910811570,0.18212305,95086.0,95085.0,8.57e-05]
[1734910811990,0.18212305,95086.0,95085.0,0.0001714]
[1734910813612,0.001,95086.0,95085.0,0.0001714]
[1734910813935,0.1023084,95086.0,95085.0,0.0001714]
[1734910814138,0.2053231,95086.0,95085.0,0.0001714]
[1734910814339,0.2040084,95086.0,95085.0,0.0001714]
[1734910814574,0.20532319,95086.0,95085.0,0.0001714]
[1734910814774,0.35532319,95086.0,95085.0,0.0001714]
[1734910814946,0.3990084,95086.0,95085.0,0.0001714]
[1734910816348,0.218,95085.0,95058.0,0.01355422]
[1734910816556,0.483355,95077.0,95048.0,8.56e-05]
[1734910816760,0.7083634,95077.0,95048.0,8.56e-05]
[1734910818186,0.7123634,95077.0,95048.0,8.56e-05]
[1734910818767,0.6123634,95077.0,95048.0,8.56e-05]
[1734910819201,0.6123634,95077.0,95050.0,0.01332876]
[1734910819619,0.293055,95077.0,95060.0,0.33711742]
[1734910820030,0.293055,95077.0,95060.0,0.210392]
[1734910820235,0.293055,95077.0,95062.0,0.0135142]
[1734910820436,0.3903634,95077.0,95055.0,0.210402]
[1734910820646,0.3903634,95077.0,95055.0,0.01350816]
[1734910820848,0.4143634,95077.0,95048.0,8.56e-05]
[1734910821257,0.4133634,95077.0,95048.0,0.09440981]
[1734910821648,0.4133634,95077.0,95076.0,0.0020858]
[1734910822014,0.4133634,95077.0,95076.0,8.58e-05]
[1734910822226,0.4173634,95077.0,95076.0,8.58e-05]
[1734910822584,0.3943634,95077.0,95076.0,8.58e-05]
[1734910823521,0.3903634,95077.0,95076.0,8.58e-05]
[1734910823947,0.3943634,95077.0,95076.0,8.58e-05]
[1734910824157,0.3903634,95077.0,95076.0,8.58e-05]
[1734910824530,0.3903634,95077.0,95076.0,0.0020858]
[1734910825935,0.4133634,95077.0,95076.0,0.0020858]
[1734910826139,0.3903634,95077.0,95076.0,0.0020858]
[1734910828232,0.4133634,95077.0,95076.0,0.0020858]
[1734910829915,0.4133634,95077.0,95076.0,8.58e-05]
[1734910830343,0.4173634,95077.0,95076.0,8.58e-05]
[1734910830573,0.4133634,95077.0,95076.0,8.58e-05]
[1734910830996,0.210395,95059.0,95053.0,0.01346346]
[1734910831194,0.210395,95059.0,95044.0,0.210428]
[1734910831780,0.210395,95059.0,95048.0,0.01359361]
[1734910831973,0.2104,95057.0,95048.0,8.56e-05]
[1734910832274,0.21093938,95057.0,95048.0,8.56e-05]
[1734910832443,0.00954748,95056.0,95048.0,8.56e-05]
[1734910833707,0.00954748,95056.0,95048.0,0.01372389]
[1734910833906,0.01086251,95056.0,95048.0,8.56e-05]
[1734910834314,0.01086251,95056.0,95048.0,0.0060856]
[1734910834315,0.01186251,95056.0,95048.0,0.0060856]
[1734910834558,0.01086251,95056.0,95048.0,8.56e-05]
[1734910834881,0.01186251,95056.0,95048.0,0.0060856]
[1734910835082,0.210404,95055.0,95048.0,0.0060856]
[1734910835288,0.01054748,95056.0,95048.0,0.0060856]
[1734910835489,0.00954874,95054.0,95048.0,0.0060856]
[1734910835685,0.211404,95056.0,95048.0,0.0060856]
[1734910835892,0.00954999,95053.0,95048.0,0.0060856]
[1734910836103,0.00131507,95055.0,95048.0,8.56e-05]
[1734910836308,0.522626,95051.0,95048.0,8.56e-05]
[1734910836504,0.233417,95049.0,95048.0,0.0060856]
[1734910836716,0.3347254,95049.0,95048.0,0.0060856]
[1734910836850,0.34425688,95049.0,95048.0,0.0060856]
[1734910837257,0.34425688,95049.0,95048.0,8.56e-05]
[1734910837663,0.34425688,95049.0,95048.0,0.0080856]
[1734910837874,0.34425688,95049.0,95048.0,8.56e-05]
[1734910838943,0.32125688,95049.0,95048.0,8.56e-05]
[1734910839348,0.32125688,95049.0,95048.0,0.0040856]
[1734910839577,0.11083988,95049.0,95048.0,0.0040856]
[1734910839785,0.00953148,95049.0,95048.0,0.0040856]
[1734910840139,0.210404,95056.0,95048.0,0.0040856]
[1734910840343,0.1120963,95055.0,95048.0,0.0040856]
[1734910840745,0.210406,95054.0,95048.0,0.0040856]
[1734910840947,0.0107937,95053.0,95048.0,0.0040856]
[1734910841221,0.420823,95052.0,95048.0,8.56e-05]
[1734910841418,0.210415,95050.0,95048.0,8.56e-05]
[1734910841975,0.00947733,95049.0,95048.0,8.56e-05]
[1734910842989,0.210411,95052.0,95048.0,0.0010856]
[1734910843219,0.00947668,95049.0,95048.0,0.0010856]
[1734910843389,0.210411,95052.0,95048.0,8.56e-05]
[1734910843603,0.00947668,95049.0,95048.0,8.56e-05]
[1734910843792,0.1013084,95055.0,95048.0,0.0040856]
[1734910843962,0.00131511,95054.0,95048.0,0.0040856]
[1734910844161,0.00053938,95057.0,95048.0,0.0040856]
[1734910844423,0.00053938,95057.0,95049.0,0.420834]
[1734910844604,0.00947741,95056.0,95049.0,0.420834]
[1734910845223,0.00947741,95056.0,95050.0,0.210415]
[1734910845371,0.00947741,95056.0,95055.0,0.1242]
[1734910845567,0.00053938,95057.0,95056.0,0.210402]
[1734910847762,0.00153938,95057.0,95056.0,0.218402]
[1734910847917,0.00153938,95057.0,95056.0,0.210402]
[1734910848121,0.00053938,95057.0,95056.0,0.210402]
[1734910848714,0.00053938,95057.0,95056.0,0.22349631]
[1734910848922,0.00053938,95057.0,95056.0,0.37349631]
[1734910849125,0.00053938,95057.0,95056.0,0.01309431]
[1734910849335,0.00053938,95057.0,95056.0,0.008]
[1734910849336,0.00153938,95057.0,95056.0,0.008]
[1734910849586,0.00153938,95057.0,95056.0,0.10232421]
[1734910849792,0.00053938,95057.0,95056.0,0.09432421]
[1734910850070,0.01108407,95057.0,95056.0,0.10332421]
[1734910850324,0.00053938,95057.0,95056.0,0.09440981]
[1734910850779,0.00153938,95057.0,95056.0,0.0090856]
[1734910851155,0.00053938,95057.0,95056.0,8.56e-05]
[1734910851498,0.00153938,95057.0,95056.0,0.0080856]
[1734910851705,0.00153938,95057.0,95056.0,0.10240981]
[1734910852778,0.00053938,95057.0,95056.0,0.09440981]
[1734910852988,0.00053938,95057.0,95056.0,0.14210981]
[1734910853189,0.00153938,95057.0,95056.0,0.15110981]
[1734910854265,0.00153938,95057.0,95056.0,0.0567856]
[1734910856920,0.00153938,95057.0,95056.0,0.2067856]
[1734910857980,0.00153938,95057.0,95056.0,0.3469706]
[1734910858613,0.00153938,95057.0,95056.0,0.448279]
[1734910858926,0.00153938,95057.0,95056.0,0.55375977]
[1734910859539,0.00153938,95057.0,95056.0,0.41357477]
[1734910859963,0.00053938,95057.0,95056.0,0.40457477]
[1734910860166,0.00953938,95057.0,95056.0,0.40557477]
[1734910860618,0.00953938,95057.0,95056.0,0.20426637]
[1734910860795,0.00953938,95057.0,95056.0,0.1987856]
[1734910861000,0.00953938,95057.0,95056.0,0.300094]
[1734910861434,0.00953938,95057.0,95055.0,0.288803]
[1734910861907,0.00953938,95057.0,95056.0,0.2013084]
[1734910862137,0.00196177,95057.0,95056.0,1.0262581]
[1734910862349,0.00078063,95057.0,95056.0,1.5294772]
[1734910862560,0.0001716,95077.0,95076.0,0.210358]
[1734910864062,0.0011716,95077.0,95076.0,0.211358]
[1734910864274,0.0011716,95077.0,95076.0,0.4126664]
[1734910864494,0.0001716,95077.0,95076.0,0.4116664]
[1734910865687,0.0031716,95077.0,95076.0,0.4126664]
[1734910866026,0.0001716,95077.0,95076.0,0.4594104]
[1734910866159,0.0001716,95077.0,95074.0,0.09441631]
[1734910866344,0.0031716,95077.0,95076.0,0.001]
[1734910866552,0.0799716,95077.0,95074.0,0.09441631]
[1734910866745,0.1297,95075.0,95074.0,0.09441631]
[1734910867031,0.25532324,95075.0,95074.0,0.09441631]
[1734910867232,0.2540084,95075.0,95074.0,0.09441631]
[1734910867354,0.0798,95073.0,95059.0,0.09441631]
[1734910867552,0.210393,95060.0,95059.0,0.09441631]
[1734910868609,0.210393,95060.0,95056.0,0.00015935]
[1734910870381,0.210393,95060.0,95056.0,0.00915935]
[1734910870643,0.420786,95060.0,95056.0,0.00915935]
[1734910871000,0.210393,95060.0,95056.0,0.00915935]
[1734910871198,0.00915966,95059.0,95056.0,0.00015935]
[1734910871600,0.210386,95064.0,95056.0,0.00015935]
[1734910871813,0.00915966,95058.0,95056.0,0.00015935]
[1734910872043,0.3116944,95064.0,95056.0,0.00015935]
[1734910872235,0.00915966,95057.0,95056.0,0.00015935]
[1734910872480,0.5220804,95064.0,95056.0,0.00015935]
[1734910872653,0.00908265,95057.0,95056.0,0.00615935]
[1734910872855,0.5220804,95064.0,95056.0,0.00015935]
[1734910873057,0.00908328,95057.0,95056.0,0.00015935]
[1734910873420,0.00908328,95057.0,95056.0,0.00415935]
[1734910873573,0.5220804,95064.0,95056.0,0.00015935]
[1734910873775,0.00907812,95063.0,95056.0,0.00715935]
[1734910874153,0.210383,95065.0,95056.0,0.00715935]
[1734910874361,0.00907812,95064.0,95056.0,0.00715935]
[1734910874964,0.0001712,95057.0,95056.0,0.00715935]
[1734910875633,0.0001712,95057.0,95056.0,0.00015935]
[1734910876054,0.0001712,95057.0,95056.0,0.00515935]
[1734910876329,0.0001712,95057.0,95056.0,0.00015935]
[1734910876665,0.0001712,95057.0,95056.0,0.028647]
[1734910877609,0.0001712,95057.0,95056.0,0.021647]
[1734910878547,0.00918366,95057.0,95056.0,0.00015935]
[1734910879010,0.00918366,95057.0,95056.0,0.00715935]
[1734910879160,0.00918366,95057.0,95056.0,0.00015935]
[1734910879610,0.00918366,95057.0,95056.0,0.00815935]
[1734910879763,0.00918366,95057.0,95056.0,0.00015935]
[1734910880014,0.00918366,95057.0,95056.0,0.00515935]
[1734910880218,0.08538366,95057.0,95056.0,0.00515935]
[1734910880417,0.13158366,95057.0,95056.0,0.00015935]
[1734910880662,0.13158366,95057.0,95056.0,0.00515935]
[1734910882163,0.34198366,95057.0,95056.0,0.00515935]
[1734910882365,0.44329206,95057.0,95056.0,0.00515935]
[1734910882571,0.44329206,95057.0,95056.0,0.00015935]
[1734910882911,0.44329206,95057.0,95056.0,0.00515935]
[1734910885125,0.46629206,95057.0,95056.0,0.00515935]
[1734910886050,0.46629206,95057.0,95056.0,0.00015935]
[1734910886400,0.46629206,95057.0,95056.0,0.00115935]
[1734910886605,0.46629206,95057.0,95056.0,0.00015935]
[1734910892018,0.39709206,95057.0,95056.0,0.00015935]
[1734910892223,0.32089206,95057.0,95056.0,0.00015935]
[1734910893686,0.32089206,95057.0,95056.0,0.00215935]
[1734910893687,0.34389206,95057.0,95056.0,0.00215935]
[1734910895573,0.32089206,95057.0,95056.0,0.00215935]
[1734910896368,0.32089206,95057.0,93374.0,0.0887741]
[1734910896577,0.3117104,95056.0,95040.0,0.420874]
[1734910896772,0.00743727,95055.0,95040.0,0.420874]
[1734910897015,0.00743727,95055.0,95041.0,0.02088967]
[1734910897423,0.0001712,95057.0,95041.0,0.02088967]
[1734910897631,0.0001712,95057.0,95043.0,0.210431]
[1734910897836,0.0001712,95057.0,95051.0,0.210411]
[1734910898903,0.0001712,95057.0,95056.0,0.210402]
[1734910901874,0.0001712,95057.0,95056.0,0.217402]
[1734910902083,0.0001712,95057.0,95056.0,0.210402]
[1734910902502,0.0001712,95057.0,95056.0,0.218402]
[1734910902660,0.0001712,95057.0,95056.0,0.210402]
[1734910902839,0.0001712,95057.0,95056.0,0.286802]
[1734910903042,0.0001712,95057.0,95056.0,0.295802]
[1734910904648,0.0001712,95057.0,95056.0,0.6471104]
[1734910904847,0.0001712,95057.0,95056.0,0.6849104]
[1734910905125,0.0001712,95057.0,95056.0,1.2674604]
[1734910905479,0.0001712,95057.0,95056.0,0.70644048]
[1734910905677,0.0001712,95057.0,95056.0,0.71544048]
[1734910905881,0.0001712,95057.0,95056.0,0.71192096]
[1734910906102,0.0001712,95057.0,95056.0,1.24792096]
[1734910906306,0.0001712,95057.0,95056.0,2.21483496]
[1734910906467,0.0001716,95077.0,95076.0,0.210358]
[1734910907600,0.0001716,95077.0,95076.0,1.08864731]
[1734910907799,0.0001716,95077.0,95076.0,0.86911531]
[1734910908390,0.0001716,95077.0,95076.0,0.8813348]
[1734910908588,0.0001716,95077.0,95076.0,0.6215478]
[1734910908848,0.0001716,95077.0,95076.0,0.64293466]
[1734910909075,0.0001716,95077.0,95076.0,0.59543466]
[1734910909300,0.0001716,95077.0,95076.0,3.02543466]
[1734910909470,0.0001714,95086.0,95085.0,0.460338]
[1734910909625,0.0001714,95086.0,95085.0,0.9098074]
[1734910910486,0.0001714,95086.0,95085.0,1.5278074]
[1734910911297,0.0001714,95086.0,95085.0,1.6278074]
[1734910911451,0.0797,95123.0,95088.0,0.736]
[1734910911646,0.0797,95123.0,95088.0,1.4838374]
[1734910912064,0.0797,95123.0,95100.0,0.1]
[1734910912279,0.0475,95135.0,95113.0,0.12672542]
[1734910912486,0.0475,95135.0,95102.0,0.686]
[1734910912487,0.0475,95135.0,95131.0,0.210234]
[1734910912728,0.0805,95138.0,95135.0,0.210226]
[1734910913044,0.0475,95145.0,95140.0,0.210215]
[1734910913045,0.1303,95145.0,95140.0,0.210215]
[1734910913367,0.1303,95145.0,95140.0,0.42043]
[1734910913563,0.1303,95145.0,95140.0,0.21037691]
[1734910914362,0.1303,95145.0,95140.0,0.00016191]
[1734910915579,0.1303,95145.0,95140.0,0.00416191]
[1734910915781,0.1303,95145.0,95140.0,0.00016191]
[1734910916001,0.1303,95145.0,95140.0,0.21037691]
[1734910916608,0.1303,95145.0,95140.0,0.21637691]
[1734910916840,0.1303,95145.0,95140.0,0.00616191]
[1734910917634,0.3115164,95144.0,95140.0,0.00616191]
[1734910917810,0.1003,95141.0,95140.0,0.00616191]
[1734910918012,0.1003,95141.0,95095.0,0.210314]
[1734910918013,0.1,95140.0,95095.0,0.210314]
[1734910918211,0.0773,95110.0,95095.0,0.210314]
[1734910918613,0.00838009,95109.0,95095.0,0.210314]
[1734910918995,0.21866509,95109.0,95095.0,0.420629]
[1734910919193,0.21866509,95109.0,95092.0,0.00010133]
[1734910919194,0.00838009,95109.0,95099.0,0.12672542]
[1734910919395,0.0773,95121.0,95104.0,0.210295]
[1734910919593,0.0773,95121.0,95112.0,0.210278]
[1734910919594,0.00693836,95120.0,95112.0,0.210278]
[1734910920248,0.00693836,95120.0,95108.0,0.210285]
[1734910920741,0.00693836,95120.0,94912.0,60.68997309]
[1734910920742,0.210262,95119.0,95105.0,0.210291]
[1734910921205,0.00688065,95118.0,95105.0,0.210291]
[1734910922383,0.10818905,95118.0,95099.0,0.001]
[1734910922605,0.210285,95109.0,95098.0,0.210308]
[1734910922840,0.210271,95115.0,95098.0,0.210308]
[1734910923095,0.00687463,95108.0,95105.0,0.006]
[1734910923312,0.210276,95113.0,95093.0,0.23110719]
[1734910923544,0.12672542,95120.0,95093.0,0.23110719]
[1734910923545,0.210291,95107.0,95093.0,0.23110619]
[1734910923774,0.420582,95107.0,95093.0,0.23110619]
[1734910923998,0.420587,95105.0,95099.0,0.001]
[1734910924210,0.210293,95105.0,95093.0,0.22518352]
[1734910924417,0.00687809,95104.0,95093.0,0.210319]
[1734910924636,0.00687809,95104.0,95093.0,0.214319]
[1734910925827,0.00687809,95104.0,95093.0,0.210319]
[1734910926069,0.00687809,95104.0,95097.0,0.42062]
[1734910926302,0.00687809,95104.0,95099.0,0.210305]
[1734910926556,0.210283,95110.0,95099.0,0.210305]
[1734910927038,0.00687853,95109.0,95099.0,0.210305]
[1734910927494,0.00687853,95109.0,95099.0,0.218305]
[1734910927779,0.00687853,95109.0,95093.0,0.22534008]
[1734910928018,0.210287,95108.0,95093.0,0.22534008]
[1734910928508,0.00687733,95107.0,95093.0,0.01502008]
[1734910928749,0.0463,95104.0,95093.0,0.01502008]
[1734910928993,0.210314,95096.0,95068.0,0.536]
[1734910929266,0.210314,95096.0,95073.0,0.210363]
[1734910929267,0.210318,95094.0,95073.0,0.210363]
[1734910929689,0.00686085,95093.0,95077.0,0.02149168]
[1734910930115,0.00686085,95093.0,95084.0,0.01475221]
[1734910930340,0.00686085,95093.0,95090.0,0.210326]
[1734910930546,0.0776,95106.0,95090.0,0.210326]
[1734910930948,0.00677016,95105.0,95094.0,0.210317]
[1734910933117,0.00677016,95105.0,95094.0,0.215317]
[1734910933709,0.00677016,95105.0,95098.0,0.210308]
[1734910934160,0.0776,95106.0,95094.0,0.215317]
[1734910934366,0.00677456,95104.0,95098.0,0.210308]
[1734910934540,0.00677516,95105.0,95098.0,0.210308]
[1734910934723,0.0794,95114.0,95098.0,0.210308]
[1734910934921,0.0794,95114.0,95102.0,0.210298]
[1734910935125,0.00683226,95113.0,95102.0,0.210298]
[1734910935349,0.210278,95112.0,95098.0,0.210308]
[1734910935759,0.0794,95114.0,95094.0,0.02598213]
[1734910935760,0.00683616,95111.0,95094.0,0.02598213]
[1734910936080,0.14181917,95140.0,95101.0,0.25]
[1734910936081,0.1283,95129.0,95101.0,0.25]
[1734910936379,0.1283,95129.0,95110.0,0.12672542]
[1734910936641,0.0786,95129.0,95122.0,0.210255]
[1734910936850,0.0807,95138.0,95126.0,0.210246]
[1734910937053,0.0807,95138.0,95132.0,0.210232]
[1734910937354,0.0807,95138.0,95132.0,0.420465]
[1734910937587,0.000171,95140.0,95132.0,0.210232]
[1734910937777,0.000171,95140.0,95132.0,0.21033333]
[1734910938033,0.000171,95140.0,95132.0,0.00010133]
[1734910938788,0.000171,95140.0,95132.0,0.21033333]
[1734910939515,0.000171,95140.0,95132.0,0.00010133]
[1734910940227,0.000171,95140.0,95132.0,0.00310133]
[1734910940927,0.000171,95140.0,95132.0,0.01475457]
[1734910941100,0.000171,95140.0,95132.0,0.00010133]
[1734910941306,0.000171,95140.0,95132.0,0.21033433]
[1734910941962,0.000171,95140.0,95132.0,0.00010133]
[1734910942175,0.000171,95140.0,95133.0,0.420462]
[1734910942781,0.000171,95140.0,95137.0,0.210221]
[1734910943188,0.000171,95140.0,95137.0,0.420443]
[1734910944070,0.000171,95140.0,95137.0,0.426443]
[1734910944708,0.000171,95140.0,95137.0,0.5277514]
[1734910944918,0.000171,95140.0,95139.0,0.210218]
[1734910946325,0.000171,95140.0,95139.0,0.369218]
[1734910946481,0.000171,95140.0,95139.0,0.360218]
[1734910947037,0.001171,95140.0,95139.0,0.361218]
[1734910947257,0.000171,95140.0,95139.0,0.360218]
[1734910948634,0.001171,95140.0,95139.0,0.361218]
[1734910949086,0.000171,95140.0,95139.0,0.360218]
[1734910949229,0.001171,95140.0,95139.0,0.361218]
[1734910949679,0.001171,95140.0,95139.0,0.360218]
[1734910950137,0.002171,95140.0,95139.0,0.361218]
[1734910950277,0.001171,95140.0,95139.0,0.6902394]
[1734910950487,0.002171,95140.0,95139.0,0.6912394]
[1734910951512,0.002171,95140.0,95139.0,0.5635264]
[1734910952301,0.000171,95140.0,95139.0,0.6628254]
[1734910952660,0.001171,95140.0,95139.0,0.001]
[1734910953297,0.00832407,95140.0,95139.0,0.001]
[1734910953498,0.00732407,95140.0,95133.0,0.01528285]
[1734910953706,0.210228,95135.0,95133.0,0.01528285]
[1734910953909,0.210228,95135.0,95132.0,0.00010133]
[1734910953910,0.258531,95133.0,95132.0,0.00010133]